fUSD/lending_fUSD_20240125
["ID","MTS","AMOUNT","RATE_DAILY","PERIOD"]
[312673519,1706142685593,-500.0,0.00051232,31]
[312673520,1706142685603,-1202.05,0.00051232,31]
[312673521,1706142685613,-546.04,0.00051232,31]
[312673522,1706142685622,-500.0,0.00051232,31]
[312673523,1706142685632,-219.92448987,0.00051232,31]
[312673524,1706142685642,-500.0,0.00051232,31]
[312673525,1706142685651,-689.23,0.00051232,2]
[312673526,1706142685661,-839.27,0.00051232,2]
[312673527,1706142685671,-500.0,0.00051232,31]
[312673528,1706142685681,-500.0,0.00051232,31]
[312673529,1706142685691,-500.0,0.00051232,31]
[312673530,1706142685700,-1213.27,0.00051232,31]
[312673531,1706142685710,-500.0,0.00051232,31]
[312673532,1706142685719,-500.0,0.00051232,31]
[312673533,1706142685729,-689.7,0.00051232,31]
[312673534,1706142685739,-483.60914499,0.00051232,31]
[312673535,1706142685748,-224.05776971,0.00051232,31]
[312673536,1706142685758,-500.0,0.00051232,31]
[312673537,1706142685767,-566.1085892,0.00051232,31]
[312673538,1706142685777,-688.21,0.00051232,31]
[312673539,1706142685787,-500.0,0.00051232,2]
[312673540,1706142685798,-500.0,0.00051232,31]
[312673541,1706142685809,-500.0,0.00051232,31]
[312673542,1706142685820,-527.15,0.00051232,31]
[312673543,1706142685830,-500.0,0.00051232,2]
[312673544,1706142685840,-500.0,0.00051232,31]
[312673545,1706142685850,-500.0,0.00051232,31]
[312673546,1706142685859,-556.3,0.00051232,31]
[312673547,1706142685869,-976.84,0.00051232,7]
[312673548,1706142685878,-500.0,0.00051232,31]
[312673549,1706142685888,-565.89,0.00051232,31]
[312673550,1706142685898,-500.0,0.00051232,31]
[312673551,1706142685909,-500.0,0.00051232,31]
[312673552,1706142685918,-500.0,0.00051232,31]
[312673553,1706142685927,-1000.0,0.00051232,2]
[312673554,1706142685937,-500.0,0.00051232,31]
[312673555,1706142685946,-500.0,0.00051232,31]
[312673556,1706142685955,-500.0,0.00051232,31]
[312673557,1706142685965,-500.0,0.00051232,31]
[312673558,1706142685974,-500.0,0.00051232,31]
[312673559,1706142685983,-500.0,0.00051232,31]
[312673560,1706142685993,-500.0,0.00051232,31]
[312673561,1706142686003,-500.0,0.00051232,31]
[312673562,1706142686012,-500.0,0.00051232,31]
[312673563,1706142686022,-500.0,0.00051232,31]
[312673564,1706142686031,-500.0,0.00051232,31]
[312673565,1706142686042,-500.0,0.00051232,31]
[312673566,1706142686052,-620.51846217,0.00051232,31]
[312673567,1706142686066,-781.79,0.00051232,31]
[312673568,1706142686076,-500.0,0.00051232,31]
[312673569,1706142686088,-500.0,0.00051232,31]
[312673570,1706142686098,-500.0,0.00051232,31]
[312673571,1706142686108,-433.65552079,0.00051232,31]
[312673572,1706142686118,-500.0,0.00051232,31]
[312673573,1706142686128,-500.0,0.00051232,31]
[312673574,1706142686137,-500.0,0.00051232,31]
[312673575,1706142686147,-500.0,0.00051232,31]
[312673576,1706142686156,-500.0,0.00051232,31]
[312673577,1706142686166,-1179.82,0.00051232,31]
[312673578,1706142686175,-3431.79,0.00051232,15]
[312673579,1706142686184,-500.0,0.00051232,31]
[312673580,1706142686194,-568.5,0.00051232,31]
[312673581,1706142686203,-500.0,0.00051232,31]
[312673582,1706142686213,-500.0,0.00051232,31]
[312673583,1706142686222,-1640.43,0.00051232,31]
[312673584,1706142686231,-500.0,0.00051232,31]
[312673585,1706142686241,-500.0,0.00051232,31]
[312673586,1706142686251,-500.0,0.00051232,31]
[312673587,1706142686260,-500.0,0.00051232,31]
[312673588,1706142686270,-599.18,0.00051232,31]
[312673589,1706142686279,-500.0,0.00051232,31]
[312673590,1706142686289,-426.13605347,0.00051232,31]
[312673591,1706142686298,-826.78,0.00051232,120]
[312673592,1706142686310,-3450.92,0.00051232,31]
[312673593,1706142686319,-594.4780359,0.00051232,31]
[312673594,1706142686329,-500.0,0.00051232,31]
[312673595,1706142686339,-500.0,0.00051232,31]
[312673596,1706142686348,-500.0,0.00051232,31]
[312673597,1706142686358,-500.0,0.00051232,31]
[312673598,1706142686367,-500.0,0.00051232,31]
[312673599,1706142686377,-500.0,0.00051232,31]
[312673600,1706142686387,-500.0,0.00051232,31]
[312673601,1706142686397,-323.95710584,0.00051232,31]
[312673602,1706142686407,-549.31,0.00051232,31]
[312673603,1706142686417,-500.0,0.00051232,31]
[312673604,1706142686427,-500.0,0.00051232,31]
[312673605,1706142686436,-500.0,0.00051232,31]
[312673606,1706142686447,-951.5,0.00051232,31]
[312673607,1706142686457,-500.0,0.00051232,31]
[312673608,1706142686467,-500.0,0.00051232,31]
[312673609,1706142686477,-500.0,0.00051232,31]
[312673610,1706142686487,-506.14,0.00051232,31]
[312673611,1706142686496,-500.0,0.00051232,31]
[312673612,1706142686506,-500.0,0.00051232,31]
[312673613,1706142686516,-500.0,0.00051232,31]
[312673614,1706142686525,-500.0,0.00051232,31]
[312673615,1706142686536,-500.0,0.00051232,31]
[312673616,1706142686547,-500.0,0.00051232,31]
[312673617,1706142686557,-500.0,0.00051232,31]
[312673618,1706142686569,-500.0,0.00051232,31]
[312673619,1706142686579,-500.0,0.00051232,31]
[312673620,1706142686589,-500.0,0.00051232,31]
[312673621,1706142686599,-500.0,0.00051232,31]
[312673622,1706142686610,-500.0,0.00051232,31]
[312673623,1706142686619,-500.0,0.00051232,31]
[312673624,1706142686629,-586.01,0.00051232,31]
[312673625,1706142686639,-500.0,0.00051232,31]
[312673626,1706142686649,-610.51,0.00051232,2]
[312673627,1706142686660,-500.0,0.00051232,31]
[312673628,1706142686670,-500.0,0.00051232,31]
[312673629,1706142686680,-1518.82,0.00051232,2]
[312673630,1706142686690,-787.32,0.00051232,31]
[312673631,1706142686700,-500.0,0.00051232,31]
[312673632,1706142686710,-500.0,0.00051232,31]
[312673633,1706142686720,-500.0,0.00051232,31]
[312673634,1706142686730,-696.9,0.00051232,31]
[312673635,1706142686740,-500.0,0.00051232,31]
[312673636,1706142686750,-500.0,0.00051232,120]
[312673637,1706142686760,-640.31927198,0.00051232,31]
[312673638,1706142686770,-839.16,0.00051232,31]
[312673639,1706142686779,-949.05,0.00051232,31]
[312673640,1706142686791,-1090.8,0.00051232,7]
[312673641,1706142686800,-500.0,0.00051232,31]
[312673642,1706142686815,-500.0,0.00051232,31]
[312673643,1706142686825,-500.0,0.00051232,31]
[312673644,1706142686835,-500.0,0.00051232,31]
[312673645,1706142686845,-500.0,0.00051232,31]
[312673646,1706142686856,-500.0,0.00051232,31]
[312673647,1706142686866,-500.0,0.00051232,31]
[312673648,1706142686876,-500.0,0.00051232,31]
[312673649,1706142686887,-500.0,0.00051232,31]
[312673650,1706142686897,-500.0,0.00051232,31]
[312673651,1706142686908,-500.0,0.00051232,31]
[312673652,1706142686918,-500.0,0.00051232,31]
[312673653,1706142686927,-500.0,0.00051232,31]
[312673654,1706142686937,-500.0,0.00051232,31]
[312673655,1706142686947,-500.0,0.00051232,31]
[312673656,1706142686957,-500.0,0.00051232,31]
[312673657,1706142686967,-500.0,0.00051232,31]
[312673658,1706142686976,-500.0,0.00051232,31]
[312673659,1706142686986,-500.0,0.00051232,31]
[312673660,1706142686995,-500.0,0.00051232,31]
[312673661,1706142687006,-500.0,0.00051232,31]
[312673662,1706142687015,-569.39,0.00051232,31]
[312673663,1706142687025,-500.0,0.00051232,31]
[312673664,1706142687034,-500.0,0.00051232,31]
[312673665,1706142687044,-500.0,0.00051232,31]
[312673666,1706142687053,-500.0,0.00051232,31]
[312673667,1706142687063,-500.0,0.00051232,31]
[312673668,1706142687073,-500.0,0.00051232,31]
[312673669,1706142687082,-500.0,0.00051232,31]
[312673670,1706142687092,-500.0,0.00051232,31]
[312673671,1706142687101,-500.0,0.00051232,31]
[312673672,1706142687111,-500.0,0.00051232,31]
[312673673,1706142687120,-500.0,0.00051232,31]
[312673674,1706142687129,-355.88072716,0.00051232,31]
[312673675,1706142687139,-500.0,0.00051232,31]
[312673676,1706142687148,-500.0,0.00051232,31]
[312673677,1706142687157,-500.0,0.00051232,31]
[312673678,1706142687167,-500.0,0.00051232,31]
[312673679,1706142687177,-500.0,0.00051232,31]
[312673680,1706142687187,-500.0,0.00051232,31]
[312673681,1706142687197,-500.0,0.00051232,31]
[312673682,1706142687206,-1012.49,0.00051232,31]
[312673683,1706142687216,-205.02085126,0.00051232,31]
[312673684,1706142687440,-500.0,0.00051232,31]
[312673685,1706142687460,-500.0,0.00051232,31]
[312673686,1706142687474,-500.0,0.00051232,31]
[312673687,1706142687483,-500.0,0.00051232,31]
[312673688,1706142687492,-500.0,0.00051232,31]
[312673689,1706142687502,-584.90596553,0.00051232,31]
[312673690,1706142687511,-500.0,0.00051232,31]
[312673691,1706142687520,-799.68,0.00051232,31]
[312673692,1706142687530,-500.0,0.00051232,31]
[312673693,1706142687539,-188.61890468,0.00051232,31]
[312673694,1706142687549,-500.0,0.00051232,31]
[312673695,1706142687560,-500.0,0.00051232,31]
[312673696,1706142687569,-500.0,0.00051232,31]
[312673697,1706142687580,-500.0,0.00051232,31]
[312673698,1706142687589,-500.0,0.00051232,31]
[312673699,1706142687599,-543.8,0.00051232,31]
[312673700,1706142687609,-500.0,0.00051232,31]
[312673701,1706142687620,-500.0,0.00051232,31]
[312673702,1706142687630,-986.07,0.00051232,31]
[312673703,1706142687639,-500.0,0.00051232,31]
[312673704,1706142687649,-500.0,0.00051232,31]
[312673705,1706142687659,-500.0,0.00051232,31]
[312673706,1706142687668,-500.0,0.00051232,31]
[312673707,1706142687678,-500.0,0.00051232,31]
[312673708,1706142687688,-500.0,0.00051232,31]
[312673709,1706142687698,-1153.66,0.00051232,31]
[312673710,1706142687708,-458.05979419,0.00051232,31]
[312673711,1706142687718,-516.65,0.00051232,31]
[312673712,1706142687727,-500.0,0.00051232,31]
[312673713,1706142687737,-500.0,0.00051232,31]
[312673714,1706142687746,-1241.77,0.00051232,31]
[312673715,1706142687756,-500.0,0.00051232,31]
[312673716,1706142687765,-500.0,0.00051232,31]
[312673717,1706142687775,-500.0,0.00051232,31]
[312673718,1706142687784,-500.0,0.00051232,31]
[312673719,1706142687794,-500.0,0.00051232,31]
[312673720,1706142687803,-500.0,0.00051232,31]
[312673721,1706142687817,-500.0,0.00051232,31]
[312673722,1706142687827,-653.39,0.00051232,31]
[312673723,1706142687837,-500.0,0.00051232,31]
[312673724,1706142687847,-836.07,0.00051232,31]
[312673725,1706142687858,-250.0,0.00051232,31]
[312673726,1706142687867,-756.21,0.00051232,31]
[312673727,1706142687876,-515.25,0.00051232,31]
[312673728,1706142687886,-500.0,0.00051232,31]
[312673729,1706142687896,-1013.31,0.00051232,31]
[312673730,1706142687906,-500.0,0.00051232,31]
[312673731,1706142687915,-616.32,0.00051232,31]
[312673732,1706142687925,-528.69,0.00051232,31]
[312673733,1706142687935,-500.0,0.00051232,31]
[312673734,1706142687944,-500.0,0.00051232,31]
[312673735,1706142687954,-956.92,0.00051232,31]
[312673736,1706142687963,-500.0,0.00051232,31]
[312673737,1706142687973,-186.84,0.00051232,31]
[312673738,1706142687984,-500.0,0.00051232,31]
[312673739,1706142687993,-998.0,0.00051232,31]
[312673740,1706142688003,-500.0,0.00051232,31]
[312673741,1706142688013,-682.58,0.00051232,31]
[312673742,1706142688022,-500.0,0.00051232,31]
[312673743,1706142688033,-4855.5,0.00051232,31]
[312673744,1706142688043,-500.0,0.00051232,31]
[312673745,1706142688054,-500.0,0.00051232,31]
[312673746,1706142688065,-500.0,0.00051232,31]
[312673747,1706142688076,-2993.87,0.00051232,31]
[312673748,1706142688086,-500.0,0.00051232,31]
[312673749,1706142688098,-500.0,0.00051232,31]
[312673750,1706142688109,-200.17551817,0.00051232,31]
[312673751,1706142688118,-5084.18,0.00051232,5]
[312673752,1706142688128,-1768.63,0.00051232,31]
[312673753,1706142688138,-900.81,0.00051232,31]
[312673754,1706142688148,-531.92,0.00051232,31]
[312673755,1706142688158,-1000.0,0.00051232,7]
[312673756,1706142688169,-500.0,0.00051232,31]
[312673757,1706142688178,-500.0,0.00051232,31]
[312673758,1706142688188,-500.0,0.00051232,31]
[312673759,1706142688197,-801.09,0.00051232,31]
[312673760,1706142688207,-500.0,0.00051232,31]
[312673761,1706142688216,-500.0,0.00051232,31]
[312673762,1706142688226,-500.0,0.00051232,31]
[312673763,1706142688235,-524.49,0.00051232,31]
[312673764,1706142688245,-500.0,0.00051232,31]
[312673765,1706142688254,-500.0,0.00051232,31]
[312673766,1706142688263,-500.0,0.00051232,31]
[312673767,1706142688272,-500.0,0.00051232,31]
[312673768,1706142688282,-544.16,0.00051232,31]
[312673769,1706142688292,-2294.01,0.00051232,31]
[312673770,1706142688301,-500.0,0.00051232,31]
[312673771,1706142688311,-500.0,0.00051232,31]
[312673772,1706142688320,-500.0,0.00051232,31]
[312673773,1706142688330,-671.26,0.00051232,31]
[312673774,1706142688340,-583.12,0.00051232,31]
[312673775,1706142688349,-830.43,0.00051232,31]
[312673776,1706142688359,-652.75,0.00051232,31]
[312673777,1706142688369,-556.8,0.00051232,31]
[312673778,1706142688379,-500.0,0.00051232,31]
[312673779,1706142688388,-500.0,0.00051232,31]
[312673780,1706142688397,-545.42,0.00051232,31]
[312673781,1706142688406,-2589.2,0.00051232,31]
[312673782,1706142688417,-541.32,0.00051232,31]
[312673783,1706142688427,-500.0,0.00051232,31]
[312673784,1706142688438,-545.58,0.00051232,31]
[312673785,1706142688449,-500.0,0.00051232,31]
[312673786,1706142688459,-659.09,0.00051232,31]
[312673787,1706142688469,-586.96,0.00051232,31]
[312673788,1706142688479,-2351.31,0.00051232,31]
[312673789,1706142688489,-1206.46,0.00051232,31]
[312673790,1706142688501,-500.0,0.00051232,31]
[312673791,1706142688513,-583.57,0.00051232,31]
[312673792,1706142688523,-524.43,0.00051232,31]
[312673793,1706142688534,-500.0,0.00051232,31]
[312673794,1706142688545,-596.67,0.00051232,31]
[312673795,1706142688554,-966.39,0.00051232,31]
[312673796,1706142688565,-500.0,0.00051232,31]
[312673797,1706142688575,-500.0,0.00051232,31]
[312673798,1706142688584,-612.43,0.00051232,31]
[312673799,1706142688594,-683.16,0.00051232,31]
[312673800,1706142688604,-500.0,0.00051232,31]
[312673801,1706142688614,-710.01,0.00051232,31]
[312673802,1706142688623,-1407.74,0.00051232,31]
[312673803,1706142688633,-500.0,0.00051232,31]
[312673804,1706142688643,-5543.02,0.00051232,31]
[312673805,1706142688653,-500.0,0.00051232,31]
[312673806,1706142688662,-500.0,0.00051232,31]
[312673807,1706142688672,-2066.55,0.00051232,31]
[312673808,1706142688682,-620.76,0.00051232,31]
[312673809,1706142688692,-1016.7,0.00051232,31]
[312673810,1706142688701,-1226.31,0.00051232,31]
[312673811,1706142688711,-500.0,0.00051232,31]
[312673812,1706142688720,-563.82,0.00051232,31]
[312673813,1706142688730,-552.79,0.00051232,31]
[312673814,1706142688740,-742.38,0.00051232,31]
[312673815,1706142688750,-500.0,0.00051232,31]
[312673816,1706142688761,-547.01,0.00051232,31]
[312673817,1706142688771,-500.0,0.00051232,31]
[312673818,1706142688780,-3013.17,0.00051232,31]
[312673819,1706142688790,-514.66,0.00051232,31]
[312673820,1706142688801,-540.87,0.00051232,31]
[312673821,1706142688813,-712.54,0.00051232,31]
[312673822,1706142688822,-2280.94,0.00051232,31]
[312673823,1706142688832,-950.67,0.00051232,31]
[312673824,1706142688841,-778.86,0.00051232,31]
[312673825,1706142688851,-500.0,0.00051232,31]
[312673826,1706142688860,-500.0,0.00051232,31]
[312673827,1706142688869,-500.0,0.00051232,31]
[312673828,1706142688878,-500.0,0.00051232,31]
[312673829,1706142688888,-500.0,0.00051232,31]
[312673830,1706142688898,-1663.46,0.00051232,31]
[312673831,1706142688908,-500.0,0.00051232,31]
[312673832,1706142688918,-649.21,0.00051232,31]
[312673833,1706142688928,-1247.69,0.00051232,31]
[312673834,1706142688938,-787.85,0.00051232,31]
[312673835,1706142688947,-1073.61,0.00051232,31]
[312673836,1706142688957,-500.0,0.00051232,31]
[312673837,1706142688966,-500.0,0.00051232,31]
[312673838,1706142688976,-500.0,0.00051232,31]
[312673839,1706142688986,-586.3366826,0.00051232,31]
[312673840,1706142688995,-500.0,0.00051232,31]
[312673841,1706142689005,-1265.65,0.00051232,31]
[312673842,1706142689014,-618.27,0.00051232,31]
[312673843,1706142689023,-500.0,0.00051232,31]
[312673844,1706142689032,-500.0,0.00051232,31]
[312673845,1706142689041,-2426.6,0.00051232,31]
[312673846,1706142689051,-3061.04,0.00051232,31]
[312673847,1706142689061,-500.0,0.00051232,31]
[312673848,1706142689070,-1315.35,0.00051232,31]
[312673849,1706142689080,-700.1,0.00051232,31]
[312673850,1706142689089,-706.67,0.00051232,31]
[312673851,1706142689098,-500.0,0.00051232,31]
[312673852,1706142689108,-660.57,0.00051232,31]
[312673853,1706142689118,-500.0,0.00051232,31]
[312673854,1706142689128,-500.0,0.00051232,31]
[312673855,1706142689137,-733.61,0.00051232,31]
[312673856,1706142689146,-860.59,0.00051232,31]
[312673857,1706142689156,-1000.0,0.00051232,7]
[312673858,1706142689165,-553.53,0.00051232,31]
[312673859,1706142689174,-605.74,0.00051232,31]
[312673860,1706142689183,-501.79,0.00051232,31]
[312673861,1706142689193,-500.0,0.00051232,31]
[312673862,1706142689202,-500.0,0.00051232,31]
[312673863,1706142689212,-564.19,0.00051232,31]
[312673864,1706142689222,-500.0,0.00051232,31]
[312673865,1706142689231,-740.74,0.00051232,31]
[312673866,1706142689241,-500.0,0.00051232,31]
[312673867,1706142689250,-1295.4,0.00051232,31]
[312673868,1706142689260,-519.74,0.00051232,31]
[312673869,1706142689270,-500.0,0.00051232,31]
[312673870,1706142689280,-500.0,0.00051232,31]
[312673871,1706142689290,-500.0,0.00051232,31]
[312673872,1706142689300,-649.59,0.00051232,31]
[312673873,1706142689309,-500.0,0.00051232,31]
[312673874,1706142689319,-537.1,0.00051232,31]
[312673875,1706142689329,-599.29,0.00051232,31]
[312673876,1706142689338,-765.11,0.00051232,31]
[312673877,1706142689347,-3710.41,0.00051232,31]
[312673878,1706142689357,-500.0,0.00051232,31]
[312673879,1706142689366,-500.0,0.00051232,31]
[312673880,1706142689375,-500.0,0.00051232,31]
[312673881,1706142689385,-1451.54,0.00051232,31]
[312673882,1706142689395,-500.0,0.00051232,31]
[312673883,1706142689404,-737.72,0.00051232,31]
[312673884,1706142689414,-658.3,0.00051232,31]
[312673885,1706142689424,-500.0,0.00051232,31]
[312673886,1706142689434,-500.0,0.00051232,31]
[312673887,1706142689444,-500.0,0.00051232,31]
[312673888,1706142689454,-748.16,0.00051232,31]
[312673889,1706142689463,-536.66,0.00051232,31]
[312673890,1706142689473,-500.0,0.00051232,31]
[312673891,1706142689483,-655.7,0.00051232,31]
[312673892,1706142689492,-937.73,0.00051232,2]
[312673893,1706142689502,-678.69,0.00051232,31]
[312673894,1706142689511,-500.0,0.00051232,31]
[312673895,1706142689521,-500.0,0.00051232,31]
[312673896,1706142689530,-764.66,0.00051232,31]
[312673897,1706142689540,-673.27,0.00051232,31]
[312673898,1706142689551,-820.44,0.00051232,31]
[312673899,1706142689562,-797.85,0.00051232,31]
[312673900,1706142689572,-500.0,0.00051232,31]
[312673901,1706142689582,-500.0,0.00051232,31]
[312673902,1706142689592,-500.0,0.00051232,31]
[312673903,1706142689601,-500.0,0.00051232,31]
[312673904,1706142689612,-618.86,0.00051232,31]
[312673905,1706142689622,-515.5,0.00051232,31]
[312673906,1706142689633,-500.0,0.00051232,31]
[312673907,1706142689642,-792.67,0.00051232,31]
[312673908,1706142689653,-1129.79,0.00051232,31]
[312673909,1706142689663,-717.84,0.00051232,31]
[312673910,1706142689673,-500.0,0.00051232,31]
[312673911,1706142689684,-510.96,0.00051232,31]
[312673912,1706142689694,-500.0,0.00051232,31]
[312673913,1706142689703,-500.0,0.00051232,31]
[312673914,1706142689713,-600.26,0.00051232,31]
[312673915,1706142689722,-689.9,0.00051232,31]
[312673916,1706142689732,-500.0,0.00051232,31]
[312673917,1706142689742,-594.93,0.00051232,2]
[312673918,1706142689752,-738.6,0.00051232,31]
[312673919,1706142689825,-757.86,0.00051232,2]
[312673920,1706142689837,-1187.72,0.00051232,31]
[312673921,1706142689847,-724.18,0.00051232,31]
[312673922,1706142689857,-754.82,0.00051232,31]
[312673923,1706142689867,-500.0,0.00051232,31]
[312673924,1706142689876,-500.0,0.00051232,31]
[312673925,1706142689888,-500.0,0.00051232,31]
[312673926,1706142689898,-1281.32,0.00051232,31]
[312673927,1706142689908,-2728.94,0.00051232,31]
[312673928,1706142689918,-557.24,0.00051232,31]
[312673929,1706142689927,-241.0,0.00051233,6]
[312673930,1706142689937,-392.16327829,0.00051237,60]
[312673931,1706142689948,-162.64199962,0.00051254,60]
[312673932,1706142689957,-162.27493029,0.00051262,60]
[312673933,1706142689966,-487.42349504,0.00051283,60]
[312673934,1706142689976,-487.42349504,0.0005129,60]
[312673935,1706142689986,-487.42349504,0.00051297,60]
[312673936,1706142689995,-153.21386405,0.000513,60]
[312673937,1706142690004,-392.16327829,0.00051304,60]
[312673938,1706142690014,-1414.43386236,0.00051319,60]
[312673939,1706142690023,-374.74972718,0.00051324,60]
[312673940,1706142690032,-557.89339702,0.00051326,120]
[312673941,1706142690042,-487.42349504,0.00051326,60]
[312673942,1706142690051,-392.16327829,0.00051332,60]
[312673943,1706142690060,-392.16327829,0.00051362,60]
[312673944,1706142690070,-374.74972718,0.00051367,60]
[312673945,1706142690080,-177.32344504,0.00051378,60]
[312673946,1706142690089,-164.81285387,0.00051397,60]
[312673947,1706142690099,-210.0,0.000514,40]
[312673948,1706142690109,-1146686.14204746,0.00051406,31]
[312673949,1706142690119,-598.09243397,0.00051406,14]
[312673950,1706142690129,-209.0,0.00051406,2]
[312673951,1706142690138,-153.21386405,0.00051419,60]
[312673952,1706142690147,-164.81285387,0.00051469,60]
[312673953,1706142690157,-150.0,0.00051478,2]
[312673954,1706142690167,-158.45724665,0.00051488,60]
[312673955,1706142690176,-208.0,0.0005149,2]
[312673956,1706142690185,-210.0,0.000515,120]
[312673957,1706142690195,-4410.7437555,0.00051503,2]
[312673958,1706142690205,-2205.37187775,0.00051503,2]
[312673959,1706142690214,-150.0,0.00051505,11]
[312673960,1706142690223,-761.53998258,0.00051506,120]
[312673961,1706142690233,-500.0,0.00051506,31]
[312673962,1706142690242,-595.87,0.00051506,31]
[312673963,1706142690252,-500.0,0.00051506,31]
[312673964,1706142690261,-500.0,0.00051506,31]
[312673965,1706142690270,-545.8,0.00051506,31]
[312673966,1706142690279,-500.0,0.00051506,31]
[312673967,1706142690288,-500.0,0.00051506,31]
[312673968,1706142690298,-500.0,0.00051506,31]
[312673969,1706142690307,-500.0,0.00051506,31]
[312673970,1706142690317,-500.0,0.00051506,31]
[312673971,1706142690326,-500.0,0.00051506,31]
[312673972,1706142690335,-500.0,0.00051506,31]
[312673973,1706142690345,-163.76052094,0.00051506,31]
[312673974,1706142690354,-500.0,0.00051506,31]
[312673975,1706142690363,-500.0,0.00051506,31]
[312673976,1706142690373,-500.0,0.00051506,31]
[312673977,1706142690382,-500.0,0.00051506,31]
[312673978,1706142690392,-500.0,0.00051506,31]
[312673979,1706142690402,-500.0,0.00051506,31]
[312673980,1706142690411,-500.0,0.00051506,31]
[312673981,1706142690421,-500.0,0.00051506,31]
[312673982,1706142690430,-500.0,0.00051506,31]
[312673983,1706142690439,-500.0,0.00051506,31]
[312673984,1706142690448,-500.0,0.00051506,31]
[312673985,1706142690458,-500.0,0.00051506,31]
[312673986,1706142690467,-500.0,0.00051506,31]
[312673987,1706142690476,-500.0,0.00051506,31]
[312673988,1706142690485,-500.0,0.00051506,31]
[312673989,1706142690494,-500.0,0.00051506,31]
[312673990,1706142690504,-500.0,0.00051506,31]
[312673991,1706142690513,-500.0,0.00051506,31]
[312673992,1706142690522,-500.0,0.00051506,31]
[312673993,1706142690531,-500.0,0.00051506,20]
[312673994,1706142690541,-500.0,0.00051506,31]
[312673995,1706142690550,-500.0,0.00051506,31]
[312673996,1706142690559,-500.0,0.00051506,31]
[312673997,1706142690570,-500.0,0.00051506,14]
[312673998,1706142690580,-500.0,0.00051506,31]
[312673999,1706142690589,-500.0,0.00051506,31]
[312674000,1706142690598,-426.52939404,0.00051506,31]
[312674001,1706142690608,-500.0,0.00051506,31]
[312674002,1706142690617,-500.0,0.00051506,31]
[312674003,1706142690626,-500.0,0.00051506,31]
[312674004,1706142690636,-324.67526658,0.00051506,31]
[312674005,1706142690646,-500.0,0.00051506,31]
[312674006,1706142690655,-1202.05,0.00051506,31]
[312674007,1706142690664,-546.04,0.00051506,31]
[312674008,1706142690673,-500.0,0.00051506,31]
[312674009,1706142690683,-500.0,0.00051506,31]
[312674010,1706142690692,-689.23,0.00051506,2]
[312674011,1706142690701,-839.27,0.00051506,2]
[312674012,1706142690711,-413.96125592,0.00051506,31]
[312674013,1706142690720,-500.0,0.00051506,31]
[312674014,1706142690729,-500.0,0.00051506,31]
[312674015,1706142690739,-1213.27,0.00051506,31]
[312674016,1706142690748,-500.0,0.00051506,31]
[312674017,1706142690758,-500.0,0.00051506,31]
[312674018,1706142690767,-689.7,0.00051506,31]